bitfinex-derivatives/quotes_SOLF0:USTF0_20241011
["timestamp","ask_amount","ask_price","bid_price","bid_amount"]
[1728639394077,11.0852,141.93,141.9,3.5258]
[1728639394481,11.0852,141.93,141.91,4.61940693]
[1728639394681,11.0852,141.93,141.9,3.5258]
[1728639394883,11.0852,141.93,141.91,4.61992554]
[1728639395083,11.0852,141.93,141.9,3.5258]
[1728639395374,11.0852,141.93,141.91,4.61978089]
[1728639395581,11.0852,141.93,141.9,3.5258]
[1728639395782,11.0852,141.93,141.91,4.61932072]
[1728639396083,11.0852,141.93,141.9,3.5258]
[1728639396279,11.0852,141.93,141.91,4.61939506]
[1728639396480,11.0852,141.93,141.9,3.5258]
[1728639396681,11.0852,141.93,141.91,4.61931107]
[1728639396981,11.0852,141.93,141.9,3.5258]
[1728639397180,11.0852,141.93,141.91,4.61931107]
[1728639397379,11.0852,141.93,141.9,3.5258]
[1728639397984,11.0852,141.93,141.91,9.2376597]
[1728639398185,11.0852,141.93,141.91,4.61882985]
[1728639398483,11.0854,141.92,141.91,4.61882985]
[1728639400080,3.5257,141.91,141.89,1.49842]
[1728639400282,11.0857,141.91,141.9,4.62032537]
[1728639402382,7.56,141.91,141.89,0.12502]
[1728639402582,16.0458,141.9,141.89,0.12502]
[1728639403376,12.52,141.9,141.84,1.3202]
[1728639403576,7.56,141.86,141.84,1.3202]
[1728639404187,11.0868,141.86,141.84,3.5272]
[1728639404485,11.0868,141.86,141.83,944.50975906]
[1728639404887,7.56,141.86,141.83,944.50975906]
[1728639405086,11.0872,141.85,141.83,944.50975906]
[1728639405473,7.56,141.85,141.83,944.50975906]
[1728639405785,11.0871,141.85,141.83,948.03735906]
[1728639405985,11.0871,141.85,141.83,944.50975906]
[1728639407082,11.0872,141.85,141.83,944.50975906]
[1728639407486,3.5272,141.85,141.83,944.50975906]
[1728639407679,11.0872,141.85,141.83,944.50975906]
[1728639410289,11.0872,141.85,141.83,855.5506]
[1728639414185,3.5273,141.84,141.83,855.5506]
[1728639414690,12.52,141.87,141.83,859.078]
[1728639414891,3.5269,141.86,141.83,855.5506]
[1728639416484,3.5269,141.86,141.84,3.5273]
[1728639416692,3.5269,141.86,141.83,855.5506]
[1728639417388,11.0872,141.85,141.83,855.5506]
[1728639418990,11.0872,141.85,141.83,859.0782]
[1728639419187,3.5269,141.86,141.83,859.0782]
[1728639420290,11.0869,141.86,141.83,859.0782]
[1728639422188,11.0869,141.86,141.83,855.5506]
[1728639422581,11.0869,141.86,141.83,859.0781]
[1728639422877,7.56,141.86,141.83,855.5506]
[1728639423081,7.56,141.84,141.83,855.5506]
[1728639425885,11.0873,141.84,141.83,855.5506]
[1728639427079,16.0473,141.84,141.83,855.5506]
[1728639427284,8.4873,141.84,141.83,855.5506]
[1728639427590,16.0473,141.84,141.83,855.5506]
[1728639434004,16.0473,141.84,141.83,765.2006]
[1728639434206,16.0473,141.84,141.83,761.32562]
[1728639442919,16.0473,141.84,141.83,670.97562]
[1728639454029,16.0473,141.84,141.83,580.62562]
[1728639456934,16.0473,141.84,141.83,490.27562]
[1728639457430,8.4873,141.84,141.83,490.27562]
[1728639457634,16.0473,141.84,141.83,490.27562]
[1728639459834,16.0473,141.84,141.83,399.92562]
[1728639465929,16.0473,141.84,141.83,309.57562]
[1728639468834,16.0473,141.84,141.83,219.22562]
[1728639469233,16.0473,141.84,141.83,173.08459626]
[1728639469435,17.34427347,141.84,141.83,157.04739626]
[1728639469738,20.8983866,141.84,141.83,140.33809626]
[1728639470239,3.5288,141.78,141.77,0.12502]
[1728639470445,7.56,141.75,141.72,3.5302]
[1728639472132,11.0895,141.76,141.72,11.0902]
[1728639473536,11.0895,141.76,141.72,7.56]
[1728639473733,11.0895,141.76,141.73,3.5301]
[1728639475946,11.0895,141.76,141.73,4.9169]
[1728639478145,3.5295,141.76,141.73,12.4769]
[1728639478538,4.96,141.77,141.75,11.0895]
[1728639478746,4.96,141.77,141.75,7.56]
[1728639480248,4.96,141.77,141.73,1.3868]
[1728639480551,8.4891,141.77,141.74,3.5297]
[1728639480746,8.4891,141.77,141.75,1.292]
[1728639485648,4.96,141.77,141.75,1.292]
[1728639485954,3.5293,141.76,141.75,1.292]
[1728639490353,7.56,141.76,141.73,1.3868]
[1728639490561,3.5298,141.74,141.73,1.3868]
[1728639493862,3.53,141.74,141.71,11.21542]
[1728639504169,3.53,141.74,141.71,7.68502]
[1728639504475,3.53,141.74,141.72,3.5303]
[1728639506476,4.96,141.77,141.72,3.5303]
[1728639506675,3.5296,141.75,141.73,3.5299]
[1728639506974,12.52,141.77,141.71,7.68502]
[1728639507785,12.52,141.77,141.72,3.5302]
[1728639508084,7.56,141.76,141.72,3.5302]
[1728639508984,7.56,141.76,141.71,11.21552]
[1728639509279,7.56,141.76,141.71,7.68502]
[1728639509485,3.5297,141.75,141.72,3.5302]
[1728639510386,7.56,141.76,141.72,3.5302]
[1728639510587,3.5298,141.74,141.72,3.5302]
[1728639514685,3.5301,141.73,141.71,3.65542]
[1728639514981,7.56,141.74,141.71,0.12502]
[1728639515384,12.52,141.74,141.71,0.12502]
[1728639515790,3.5301,141.73,141.71,0.12502]
[1728639520288,3.5301,141.73,141.71,7.68502]
[1728639525399,4.96,141.77,141.72,7.56]
[1728639525593,4.96,141.77,141.73,7.56]
[1728639525797,3.5294,141.76,141.73,11.09]
[1728639534803,4.96,141.77,141.73,7.56]
[1728639535006,3.5296,141.75,141.73,7.56]
[1728639537508,3.5296,141.75,141.72,11.0902]
[1728639539811,4.96,141.77,141.72,11.0902]
[1728639540011,3.5295,141.76,141.72,11.0902]
[1728639540214,3.5295,141.76,141.74,7.56]
[1728639541115,3.5295,141.76,141.73,11.0898]
[1728639552415,12.52,141.78,141.71,0.12502]
[1728639552612,7.56,141.77,141.71,7.68502]
[1728639553312,7.56,141.77,141.71,11.21542]
[1728639554821,3.5299,141.74,141.71,11.21542]
[1728639563110,3.5299,141.74,141.73,7.56]
[1728639564121,3.5297,141.75,141.73,7.56]
[1728639569424,3.5303,141.72,141.71,0.12502]
[1728639569728,7.56,141.75,141.71,0.12502]
[1728639569930,12.5,141.75,141.71,0.12502]
[1728639570525,3.5303,141.72,141.71,0.12502]
[1728639575035,3.5303,141.73,141.71,0.12502]
[1728639575235,12.5,141.75,141.71,0.12502]
[1728639575931,3.5303,141.73,141.71,0.12502]
[1728639576440,3.5303,141.73,141.71,7.68502]
[1728639580558,3.5303,141.73,141.72,7.56]
[1728639581663,12.5,141.75,141.71,0.12502]
[1728639581956,3.5303,141.72,141.71,0.12502]
[1728639595666,4.94,141.75,141.71,0.12502]
[1728639595859,3.53,141.74,141.71,11.21562]
[1728639596161,3.53,141.74,141.73,7.56]
[1728639596363,3.5294,141.76,141.73,7.56]
[1728639596659,3.5294,141.76,141.74,7.56]
[1728639597062,56.77776289,141.77,141.74,7.56]
[1728639597267,3.5296,141.75,141.74,7.56]
[1728639598367,61.71776289,141.77,141.74,7.56]
[1728639598568,3.5294,141.76,141.74,7.56]
[1728639601668,3.5294,141.76,141.72,3.5302]
[1728639601870,3.5294,141.76,141.74,7.56]
[1728639602060,716.22693824,141.91,141.75,7.56]
[1728639602265,3.65272,141.83,141.8,7.56]
[1728639602662,3.65272,141.83,141.81,7.56]
[1728639603264,3.65272,141.83,141.8,7.56]
[1728639610079,3.5279,141.82,141.8,7.56]
[1728639613083,3.5279,141.82,141.81,7.56]
[1728639616078,5.06502,141.83,141.81,7.56]
[1728639616274,5.06502,141.83,141.82,7.56]
[1728639616275,0.12502,141.83,141.82,7.56]
[1728639616585,4.94,141.87,141.82,7.56]
[1728639616786,3.65112,141.89,141.86,7.56]
[1728639616984,3.65112,141.89,141.88,7.56]
[1728639618279,3.65112,141.89,141.87,7.56]
[1728639620783,0.12502,141.89,141.88,7.56]
[1728639621386,0.12502,141.89,141.88,11.0863]
[1728639623090,0.12502,141.89,141.88,7.56]
[1728639625090,0.12502,141.89,141.83,2.7455]
[1728639625389,3.5265,141.88,141.86,7.56]
[1728639625681,3.5265,141.88,141.84,3.5271]
[1728639625888,3.5265,141.88,141.86,7.56]
[1728639626490,3.5266,141.87,141.85,7.56]
[1728639630591,3.5269,141.86,141.83,4.8474]
[1728639630782,3.5269,141.86,141.85,7.56]
[1728639630988,12.62502,141.89,141.83,7.56]
[1728639631387,3.527,141.86,141.83,7.56]
[1728639631788,3.5271,141.85,141.83,7.56]
[1728639632090,3.5271,141.85,141.81,92.50843926]
[1728639632391,12.62502,141.89,141.83,7.56]
[1728639632786,7.56,141.87,141.81,88.98053926]
[1728639632986,7.56,141.87,141.82,7.56]
[1728639633393,3.5275,141.84,141.82,7.56]
[1728639634288,3.5276,141.83,141.82,7.56]
[1728639635495,12.5,141.86,141.81,88.98053926]
[1728639635793,3.5278,141.82,141.81,88.98053926]
[1728639636196,3.5278,141.82,141.81,96.54053926]
[1728639636695,3.5282,141.81,141.8,7.56]
[1728639636897,7.56,141.85,141.8,7.56]
[1728639637194,7.56,141.85,141.81,7.56]
[1728639637795,3.5274,141.84,141.81,7.56]
[1728639637991,7.56,141.85,141.81,7.56]
[1728639638597,3.5278,141.83,141.81,7.56]
[1728639644290,3.528,141.82,141.8,7.56]
[1728639647204,3.528,141.82,141.79,3.5286]
[1728639647405,3.528,141.82,141.8,7.56]
[1728639656000,4.94,141.86,141.81,7.56]
[1728639656210,3.5277,141.83,141.81,7.56]
[1728639670321,3.5278,141.83,141.81,7.56]
[1728639671027,3.5278,141.83,141.8,7.56]
[1728639673226,3.5278,141.82,141.8,7.56]
[1728639674030,3.5278,141.82,141.79,3.5285]
[1728639674331,3.5278,141.82,141.8,7.56]
[1728639675432,4.94,141.84,141.8,7.56]
[1728639675626,3.5277,141.83,141.8,11.0883]
[1728639679332,3.5277,141.83,141.8,3.5283]
[1728639679528,3.5277,141.83,141.8,11.0883]
[1728639681039,3.5277,141.83,141.8,7.56]
[1728639684939,3.5276,141.83,141.8,7.56]
[1728639691143,3.5278,141.83,141.8,7.56]
[1728639692247,4.94,141.84,141.8,7.56]
[1728639692444,3.5279,141.82,141.8,7.56]
[1728639701951,3.5279,141.82,141.79,11.0885]
[1728639703342,3.5279,141.82,141.79,3.5285]
[1728639725976,3.5279,141.82,141.8,3.5283]
[1728639732486,1.3838,141.88,141.81,7.56]
[1728639732678,1.3838,141.88,141.83,7.56]
[1728639732879,4.94,141.87,141.83,7.56]
[1728639733683,3.5269,141.86,141.83,7.56]
[1728639734396,3.5271,141.85,141.83,7.56]
[1728639737891,1.3838,141.88,141.83,7.56]
[1728639738089,3.5267,141.87,141.84,11.0873]
[1728639739493,3.5264,141.88,141.85,11.087]
[1728639739795,55.54643522,141.89,141.87,7.56]
[1728639741398,55.54643522,141.89,141.87,11.0866]
[1728639743003,55.54643522,141.89,141.86,11.0868]
[1728639743200,59.07273522,141.89,141.84,2.5926]
[1728639743501,63.10643522,141.89,141.84,10.1526]
[1728639743903,3.5265,141.88,141.84,13.6798]
[1728639744200,63.10643522,141.89,141.84,13.6798]
[1728639744499,3.5265,141.88,141.84,13.6798]
[1728639745299,3.5266,141.87,141.84,13.6798]
[1728639745902,3.5266,141.87,141.85,3.5271]
[1728639747000,3.5266,141.87,141.85,11.0871]
[1728639752008,3.5266,141.87,141.86,7.56]
[1728639754411,3.5264,141.88,141.86,11.0868]
[1728639756107,55.54643522,141.89,141.86,11.0868]
[1728639756311,59.07253522,141.89,141.87,7.56]
[1728639756711,59.07253522,141.89,141.86,11.0868]
[1728639764923,3.65112,141.89,141.86,11.0868]
[1728639767221,3.65112,141.89,141.86,3.5268]
[1728639767426,3.5265,141.88,141.85,11.087]
[1728639772123,3.5265,141.88,141.86,7.56]
[1728639774331,3.65122,141.89,141.86,11.0868]
[1728639787836,0.12502,141.89,141.86,7.56]
[1728639788031,0.12502,141.89,141.87,3.5266]
[1728639790930,0.12502,141.89,141.86,11.0867]
[1728639792831,0.12502,141.89,141.86,7.56]
[1728639793037,0.12502,141.89,141.88,11.0863]
[1728639793335,2.6366,141.97,141.88,7.56]
[1728639793336,4.92,141.96,141.88,7.56]
[1728639793529,8.4446,141.96,141.94,7.56]
[1728639793729,3.5246,141.96,141.94,7.56]
[1728639794037,8.8737,141.97,141.92,11.0852]
[1728639794235,3.525,141.94,141.91,7.56]
[1728639795436,3.525,141.94,141.91,11.0856]
[1728639797039,56.69963043,141.97,141.92,7.56]
[1728639797234,3.64972,141.95,141.92,7.56]
[1728639799844,0.12502,141.95,141.92,11.0853]
[1728639800140,0.12502,141.95,141.93,7.56]
[1728639800541,3.64962,141.95,141.93,7.56]
[1728639801138,3.64962,141.95,141.92,7.56]
[1728639801641,0.12502,141.95,141.89,6.2667]
[1728639801843,3.5251,141.94,141.9,3.5258]
[1728639802043,0.12502,141.95,141.91,7.56]
[1728639802239,0.12502,141.95,141.92,7.56]
[1728639802442,3.64972,141.95,141.92,7.56]
[1728639803244,3.64972,141.95,141.92,11.0854]
[1728639805049,3.64972,141.95,141.93,7.56]
[1728639807946,0.12502,141.95,141.93,11.0851]
[1728639809343,0.12502,141.95,141.91,1.383]
[1728639809548,0.12502,141.95,141.91,8.943]
[1728639810247,3.5251,141.94,141.91,8.943]
[1728639813747,3.5254,141.92,141.9,7.56]
[1728639814147,7.68502,141.95,141.9,7.56]
[1728639814451,3.5252,141.93,141.9,7.56]
[1728639816659,3.5256,141.91,141.89,8.9067]
[1728639819962,3.5256,141.91,141.89,12.4328]
[1728639820764,7.56,141.93,141.88,7.56]
[1728639821466,3.526,141.9,141.88,7.56]
[1728639823367,7.56,141.93,141.87,3.5264]
[1728639823368,3.5257,141.91,141.87,3.5264]
[1728639823657,3.59332334,141.92,141.88,7.56]
[1728639823869,11.15332334,141.92,141.88,7.56]
[1728639824050,7.56,141.92,141.88,7.56]
[1728639824255,7.56,141.92,141.87,3.5264]
[1728639824454,7.56,141.92,141.87,11.0864]
[1728639824662,11.07257054,141.92,141.87,11.0864]
[1728639825764,3.5261,141.9,141.87,11.0864]
[1728639826460,3.5261,141.89,141.87,11.0864]
[1728639829467,3.526,141.9,141.87,11.0864]
[1728639832664,3.5258,141.91,141.88,11.0861]
[1728639832864,3.5258,141.91,141.88,7.56]
[1728639834470,3.5258,141.91,141.89,3.5261]
[1728639835873,3.5258,141.91,141.88,11.0862]
[1728639840079,7.56,141.93,141.88,7.56]
[1728639840280,3.5255,141.92,141.89,3.526]
[1728639842280,3.5256,141.91,141.88,3.5262]
[1728639843675,12.48,141.94,141.89,3.526]
[1728639843882,12.48,141.94,141.88,7.56]
[1728639844381,3.5252,141.93,141.88,7.56]
[1728639844674,1.48952,141.95,141.91,7.56]
[1728639844983,5.04502,141.95,141.92,7.56]
[1728639845374,8.56982,141.95,141.92,7.56]
[1728639845670,8.56982,141.95,141.91,11.0855]
[1728639845876,3.5249,141.94,141.91,11.0855]
[1728639846981,11.0849,141.94,141.9,11.0858]
[1728639848375,11.0849,141.94,141.9,7.56]
[1728639848579,11.0849,141.94,141.91,3.5256]
[1728639849783,11.0849,141.94,141.9,7.56]
[1728639849983,11.0849,141.94,141.9,11.0857]
[1728639850480,7.56,141.94,141.9,3.5257]
[1728639850675,3.5252,141.93,141.9,11.0857]
[1728639852579,3.5249,141.94,141.91,11.0856]
[1728639859585,3.5249,141.94,141.91,3.5256]
[1728639860382,3.5251,141.93,141.9,11.0857]
[1728639862085,3.5254,141.92,141.89,6.2479]
[1728639867187,3.5254,141.92,141.89,13.8079]
[1728639869585,3.5254,141.92,141.9,3.5258]
[1728639884500,3.5252,141.93,141.9,3.5258]
[1728639894798,5.04502,141.95,141.91,7.56]
[1728639895798,8.56982,141.95,141.92,3.5252]
[1728639898201,5.04502,141.95,141.91,7.56]
[1728639898406,3.5249,141.94,141.91,11.0855]
[1728639899808,5.04502,141.95,141.89,2.7219]
[1728639900108,3.5253,141.93,141.9,3.5257]
[1728639902202,3.525,141.94,141.91,3.5256]
[1728639907515,5.04502,141.95,141.9,7.56]
[1728639907719,0.12502,141.95,141.93,7.56]
[1728639908617,0.12502,141.95,141.94,7.56]
[1728639909115,0.12502,141.95,141.94,11.0849]
[1728639912917,8.4437,141.99,141.95,3.5244]
[1728639913117,8.4437,141.99,141.94,7.56]
[1728639913118,3.5237,141.99,141.96,7.56]
[1728639915422,3.5237,141.99,141.96,11.0843]
[1728639916920,3.5237,141.99,141.96,3.5243]
[1728639917218,3.5237,141.99,141.96,11.0843]
[1728639917724,3.5235,142.0,141.97,3.524]
[1728639918821,3.5237,141.99,141.96,3.5243]
[1728639920320,7.56,142.0,141.96,3.5243]
[1728639920511,11.0835,142.0,141.96,3.5243]
[1728639924113,3.5236,141.99,141.96,3.5243]
[1728639926325,3.5236,141.99,141.96,11.0843]
[1728639929530,3.5236,141.99,141.96,3.5243]
[1728639929734,3.524,141.98,141.96,7.56]
[1728639930839,3.5236,142.0,141.97,11.0839]
[1728639931138,0.12502,142.01,141.99,7.56]
[1728639931439,0.12502,142.01,141.99,11.0836]
[1728639931632,0.12502,142.01,141.99,7.56]
[1728639932138,3.64812,142.01,141.99,7.56]
[1728639933033,0.12502,142.01,142.0,7.56]
[1728639934535,0.12502,142.01,142.0,11.0834]
[1728639938035,0.12502,142.01,142.0,3.5234]
[1728639938237,0.12502,142.01,142.0,11.0834]
[1728639940844,0.12502,142.01,142.0,3.5234]
[1728639941237,0.12502,142.01,142.0,11.0834]
[1728639948134,3.522,142.06,142.02,3.5227]
[1728639948341,3.522,142.06,142.03,7.56]
[1728639949149,3.5221,142.05,142.03,7.56]
[1728639952853,3.5221,142.05,142.02,7.56]
[1728639955863,3.5221,142.05,142.02,11.0829]
[1728639957664,11.13237656,142.07,142.0,6.3235]
[1728639957870,3.5225,142.04,142.01,11.083]
[1728639958067,3.57237656,142.07,142.03,7.56]
[1728639958370,11.13237656,142.07,142.03,7.56]
[1728639958565,0.12502,142.07,142.03,7.56]
[1728639958770,3.5219,142.06,142.03,7.56]
[1728639959673,3.5222,142.05,142.03,7.56]
[1728639960379,3.522,142.06,142.03,11.0825]
[1728639960874,3.522,142.06,142.03,7.56]
[1728639961478,7.68502,142.07,142.02,11.0828]
[1728639961677,3.5222,142.05,142.02,11.0828]
[1728639962075,3.5222,142.05,142.02,7.56]
[1728639962278,11.15045082,142.07,142.0,6.3235]
[1728639962279,3.5224,142.04,142.01,3.523]
[1728639962480,3.5224,142.04,142.02,7.56]
[1728639970980,3.5224,142.04,142.01,3.523]
[1728639971181,3.5227,142.03,142.01,11.083]
[1728639973085,7.56,142.03,141.98,11.0838]
[1728639973287,7.56,142.04,142.0,7.56]
[1728639973586,3.5229,142.02,142.01,7.56]
[1728639975184,3.5227,142.03,142.01,7.56]
[1728639981596,3.5231,142.02,141.99,7.56]
[1728639982594,3.5231,142.02,141.99,11.0835]
[1728639982990,7.56,142.03,141.97,6.3065]
[1728639983197,3.5233,142.01,141.98,11.0838]
[1728639983995,3.5233,142.01,141.99,7.56]
[1728639984590,7.56,142.02,141.97,1.4065]
[1728639984897,7.56,141.99,141.95,0.12502]
[1728639985097,12.46,141.99,141.95,0.12502]
[1728639985294,3.5243,141.97,141.95,0.12502]
[1728639986302,4.9,141.99,141.96,7.56]
[1728639986604,55.35917796,142.04,141.97,7.56]
[1728639986605,4.9,142.0,141.97,7.56]
[1728639986904,7.56,142.01,141.89,0.12502]
[1728639986905,7.56,141.98,141.89,0.12502]
[1728639987087,3.5258,141.91,141.89,0.12502]
[1728639988592,4.9,141.92,141.89,0.12502]
[1728639988897,8.4254,141.92,141.89,0.12502]
[1728639989093,3.5254,141.92,141.89,0.12502]
[1728639997410,12.46,141.93,141.89,0.12502]
[1728639997606,3.5256,141.91,141.89,0.12502]
[1728639998212,3.5258,141.9,141.89,0.12502]
[1728640006115,4.9,141.93,141.89,0.12502]
[1728640006314,3.5258,141.91,141.89,0.12502]
[1728640007117,3.5254,141.92,141.89,0.12502]
[1728640007409,16.05815421,141.93,141.89,0.12502]
[1728640007816,3.5257,141.91,141.89,0.12502]
[1728640008312,3.5258,141.9,141.89,0.12502]
[1728640026629,11.0858,141.9,141.89,0.12502]
[1728640027024,16.0258,141.9,141.89,0.12502]
[1728640049447,8.4658,141.9,141.89,0.12502]
[1728640049740,16.0258,141.9,141.89,0.12502]
[1728640052649,8.4658,141.9,141.89,0.12502]
[1728640052846,16.0258,141.9,141.89,0.12502]
[1728640053545,15.9858,141.9,141.89,0.12502]
[1728640056548,8.4258,141.9,141.89,0.12502]
[1728640056756,15.9858,141.9,141.89,0.12502]
[1728640060656,11.0858,141.9,141.89,0.12502]
[1728640060956,15.9858,141.9,141.89,0.12502]
[1728640063469,8.4258,141.9,141.89,0.12502]
[1728640064163,11.0857,141.91,141.89,0.12502]
[1728640064670,3.59815421,141.93,141.89,0.12502]
[1728640064868,15.9855,141.92,141.89,0.12502]
[1728640065065,7.56,141.92,141.89,1.53952]
[1728640065367,12.46,141.92,141.89,1.53952]
[1728640066468,55.3944706,141.96,141.91,3.5255]
[1728640066666,55.3944706,141.96,141.89,1.53952]
[1728640066667,7.56,141.94,141.89,4.33312]
[1728640066862,11.085,141.94,141.89,4.33312]
[1728640067165,4.9,141.95,141.89,4.33312]
[1728640067568,7.56,141.94,141.89,4.33312]
[1728640068159,11.085,141.94,141.9,3.5258]
[1728640068970,7.56,141.93,141.9,3.5258]
[1728640069271,11.0851,141.93,141.9,3.5258]
[1728640070669,11.0855,141.92,141.89,4.33312]
[1728640071468,7.56,141.92,141.89,4.33312]
[1728640071770,3.5256,141.91,141.89,4.33312]
[1728640079079,3.5256,141.91,141.89,7.85912]
[1728640079481,3.5258,141.9,141.89,4.33312]
[1728640082378,7.56,141.92,141.89,4.33312]
[1728640082578,3.5257,141.91,141.89,4.33312]
[1728640082778,3.5257,141.91,141.89,7.85922]
[1728640086183,3.5256,141.91,141.89,4.33312]
[1728640092585,3.5256,141.91,141.89,7.85922]
[1728640097286,7.56,141.92,141.89,7.85922]
[1728640097488,11.0854,141.92,141.89,7.85922]
[1728640098194,11.0854,141.92,141.89,6.49502]
[1728640098398,3.5258,141.91,141.89,1.53952]
[1728640098994,3.5258,141.91,141.89,5.06562]
[1728640099890,7.56,141.92,141.89,5.06562]
[1728640100086,11.0855,141.92,141.89,5.06562]
[1728640104200,3.5255,141.92,141.89,5.06562]
[1728640115406,3.5255,141.92,141.9,3.5258]
[1728640117504,11.0855,141.92,141.9,3.5258]
[1728640118203,7.56,141.92,141.9,3.5258]
[1728640125412,7.56,141.92,141.89,0.12502]
[1728640125614,11.0857,141.91,141.89,0.12502]
[1728640126708,3.5255,141.92,141.89,0.12502]
[1728640126902,7.56,141.9,141.89,0.12502]
[1728640134421,11.0858,141.9,141.89,0.12502]
[1728640136519,8.4256,141.91,141.89,3.65102]
[1728640136718,15.9856,141.91,141.89,0.12502]
[1728640138118,12.46,141.91,141.89,0.12502]
[1728640138319,3.5258,141.9,141.89,0.12502]
[1728640144419,11.0858,141.9,141.89,0.12502]
[1728640154039,3.5258,141.9,141.89,0.12502]
[1728640154234,11.0858,141.9,141.89,0.12502]
[1728640161234,8.4258,141.91,141.89,0.12502]
[1728640161739,4.9,141.91,141.89,0.12502]
[1728640162346,3.5258,141.9,141.89,0.12502]
[1728640166542,11.0858,141.9,141.89,0.12502]
[1728640167645,4.9,141.9,141.89,0.12502]
[1728640168646,8.4258,141.9,141.89,0.12502]
[1728640171850,15.9858,141.9,141.89,0.12502]
[1728640178159,8.4258,141.9,141.89,0.12502]
[1728640178453,15.9858,141.9,141.89,0.12502]
[1728640180661,8.4258,141.9,141.89,0.12502]
[1728640181051,15.9858,141.9,141.89,0.12502]
[1728640191955,8.4258,141.9,141.89,0.12502]
[1728640196864,4.9,141.9,141.89,0.12502]
[1728640199364,1.3878,141.96,141.89,3.65112]
[1728640199365,15.9854,141.92,141.89,3.65112]
[1728640199560,3.5254,141.92,141.89,3.65112]
[1728640199761,3.5254,141.92,141.89,5.04762]
[1728640200154,3.5254,141.92,141.89,1.52152]
[1728640202567,3.5254,141.92,141.89,5.04752]
[1728640207175,3.5254,141.92,141.89,1.52152]
[1728640207176,7.56,141.92,141.89,1.52152]
[1728640207477,3.5256,141.91,141.89,1.52152]
[1728640210871,3.57266677,142.01,141.9,3.5256]
[1728640211073,7.56,141.94,141.9,3.5256]
[1728640211466,3.5252,141.93,141.9,11.0856]
[1728640214978,7.56,141.93,141.89,1.52152]
[1728640215173,3.5255,141.92,141.89,5.04742]
[1728640215481,7.56,141.9,141.89,0.12502]
[1728640215680,3.5258,141.9,141.89,0.12502]
[1728640217579,8.4254,141.92,141.89,0.12502]
[1728640217779,12.46,141.92,141.89,0.12502]
[1728640218373,3.5258,141.91,141.89,0.12502]
[1728640224594,1.305,141.96,141.89,0.12502]
[1728640224879,4.9,141.95,141.89,3.65102]
[1728640225183,11.0853,141.93,141.89,3.65102]
[1728640226285,7.56,141.93,141.89,0.12502]
[1728640226585,7.56,141.93,141.9,3.5258]
[1728640227185,11.0852,141.93,141.9,3.5258]
[1728640229380,11.0852,141.93,141.89,3.65102]
[1728640229775,7.56,141.93,141.89,3.65102]
[1728640229978,3.5254,141.92,141.89,3.65102]
[1728640230784,3.5252,141.93,141.9,11.0856]
[1728640230991,4.9,141.94,141.9,7.56]
[1728640231482,3.5253,141.93,141.9,7.56]
[1728640233497,4.9,141.94,141.9,7.56]
[1728640234191,15.985,141.94,141.9,11.0857]
[1728640234497,15.985,141.94,141.9,7.56]